[Event "55th Rubinstein Memorial-C 2019"]
[Site "Polanica-Zdroj"]
[Date "2019.08.24"]
[Round "8.25"]
[White "Zyla, Tomasz"]
[Black "Wianecki, Mateusz"]
[Result "1/2-1/2"]
[ECO "A41"]
[WhiteElo "1471"]
[BlackElo "1634"]
[Annotator "NA"]
[PlyCount "98"]
[EventDate "2019.08.17"]
[EventType "swiss"]
[EventCountry "POL"]
[SourceTitle "playchess.com"]
[Source "ChessBase"]
[SourceQuality "1"]
[TimeControl "40/5400+30:1800+30"]

1. d4 {[%emt 0:00:00]} d6 {[%emt 0:06:56]} 2. c4 {[%emt 0:00:33]} e5 {[%emt 0:00:05]} 3. e3 {[%emt 0:02:43]} Nc6 {[%emt 0:03:44]} 4. d5 {[%emt 0:01:48]} Nce7 {[%emt 0:02:34]} 5. Nc3 {[%emt 0:00:31]} g6 {[%emt 0:00:18]} 6. f4 {[%emt 0:05:20]} exf4 {[%emt 0:02:57]} 7. exf4 {[%emt 0:00:05]} Bg7 {[%emt 0:00:10]} 8. g3 {[%emt 0:02:50]} Nf6 {[%emt 0:01:28]} 9. Bg2 {[%emt 0:00:20]} O-O {[%emt 0:01:23]} 10. Nf3 {[%emt 0:01:52]} Re8 {[%emt 0:02:08]} 11. O-O {[%emt 0:00:18]} Bd7 {[%emt 0:16:27]} 12. Qb3 {[%emt 0:12:57]} Qc8 {[%emt 0:00:25]} 13. Bd2 {[%emt 0:04:36]} b6 {[%emt 0:00:36]} 14. Rae1 {[%emt 0:03:17]} Bh3 {[%emt 0:01:59]} 15. Re2 {[%emt 0:02:49]} Bxg2 {[%emt 0:00:28]} 16. Kxg2 {[%emt 0:00:38]} Nf5 {[%emt 0:03:38]} 17. Rfe1 {[%emt 0:01:19]} Rxe2+ {[%emt 0:00:30]} 18. Rxe2 {[%emt 0:01:10]} c6 {[%emt 0:03:48]} 19. h3 {[%emt 0:10:09]} h5 {[%emt 0:00:16]} 20. a4 {[%emt 0:10:52]} Qb7 {[%emt 0:05:45]} 21. Be1 {[%emt 0:06:10]} Rc8 {[%emt 0:07:58]} 22. Bf2 {[%emt 0:12:36]} cxd5 {[%emt 0:03:14]} 23. cxd5 {[%emt 0:01:14]} Ne7 {[%emt 0:06:04]} 24. Rd2 {[%emt 0:00:37]} Nf5 {[%emt 0:12:33]} 25. Nd4 {[%emt 0:06:09]} Nxd4 {[%emt 0:06:41]} 26. Bxd4 {[%emt 0:00:06]} Qd7 {[%emt 0:00:17]} 27. Bxf6 {[%emt 0:05:51]} Bxf6 {[%emt 0:00:01]} 28. Ne4 {[%emt 0:00:01]} Be7 {[%emt 0:04:08]} 29. Rc2 {[%emt 0:01:08]} Rxc2+ {[%emt 0:03:54]} 30. Qxc2 {[%emt 0:00:03]} Qf5 {[%emt 0:00:18]} 31. Qc4 {[%emt 0:00:15]} h4 {[%emt 0:00:39]} 32. b4 {[%emt 0:03:00]} hxg3 {[%emt 0:01:03]} 33. Kxg3 {[%emt 0:00:56]} Bh4+ {[%emt 0:01:05]} 34. Kg2 {[%emt 0:02:08]} Qxf4 {[%emt 0:00:27]} 35. Qc8+ {[%emt 0:01:24]} Kg7 {[%emt 0:00:32]} 36. Qg4 {[%emt 0:00:08]} Qxg4+ {[%emt 0:00:34]} 37. hxg4 {[%emt 0:00:01]} Be7 {[%emt 0:00:47]} 38. Kf3 {[%emt 0:01:59]} f5 {[%emt 0:00:21]} 39. gxf5 {[%emt 0:00:23]} gxf5 {[%emt 0:00:02]} 40. Nd2 {[%emt 0:00:44]} Kf6 {[%emt 0:00:56]} 41. Nc4 {[%emt 0:30:32]} Kg5 {[%emt 0:30:34]} 42. b5 {[%emt 0:00:25]} Kf6 {[%emt 0:00:58]} 43. Kf4 {[%emt 0:00:40]} Bf8 {[%emt 0:00:37]} 44. a5 {[%emt 0:00:34]} bxa5 {[%emt 0:00:15]} 45. Nxa5 {[%emt 0:00:18]} Bh6+ {[%emt 0:00:37]} 46. Kf3 {[%emt 0:00:15]} Ke5 {[%emt 0:00:13]} 47. Nc6+ {[%emt 0:00:23]} Kxd5 {[%emt 0:00:17]} 48. Nxa7 {[%emt 0:00:08]} Kc5 {[%emt 0:01:31]} 49. Nc8 {[%emt 0:00:55]} Kxb5 1/2-1/2

[Event "55th Rubinstein Memorial-C 2019"]
[Site "Polanica-Zdroj"]
[Date "2019.08.24"]
[Round "8.26"]
[White "Mytnik, Kinga"]
[Black "Rzenca, Jerzy"]
[Result "1-0"]
[ECO "B10"]
[WhiteElo "1620"]
[BlackElo "1419"]
[Annotator "NA"]
[PlyCount "69"]
[EventDate "2019.08.17"]
[EventType "swiss"]
[EventCountry "POL"]
[SourceTitle "playchess.com"]
[Source "ChessBase"]
[SourceQuality "1"]
[TimeControl "40/5400+30:1800+30"]

1. e4 {[%emt 0:00:00]} c6 {[%emt 0:00:00]} 2. d3 {[%emt 0:00:00]} d5 {[%emt 0:03:18]} 3. Nd2 {[%emt 0:00:23]} e5 {[%emt 0:00:03]} 4. Ngf3 {[%emt 0:00:38]} Bd6 {[%emt 0:00:04]} 5. g3 {[%emt 0:00:45]} Nf6 {[%emt 0:00:59]} 6. Bg2 {[%emt 0:00:29]} O-O {[%emt 0:00:47]} 7. O-O {[%emt 0:00:16]} Qc7 {[%emt 0:01:15]} 8. c3 {[%emt 0:00:57]} Rd8 {[%emt 0:05:40]} 9. Qc2 {[%emt 0:01:19]} Nbd7 {[%emt 0:01:07]} 10. a3 {[%emt 0:01:04]} a5 {[%emt 0:00:21]} 11. b3 {[%emt 0:00:59]} Nf8 {[%emt 0:06:28]} 12. Bb2 {[%emt 0:00:23]} Ng6 {[%emt 0:00:17]} 13. Rfe1 {[%emt 0:00:52]} Be6 {[%emt 0:03:36]} 14. Ng5 {[%emt 0:03:46]} Bd7 {[%emt 0:00:08]} 15. c4 {[%emt 0:03:12]} h6 {[%emt 0:01:55]} 16. Ngf3 {[%emt 0:04:52]} dxe4 {[%emt 0:02:17]} 17. dxe4 {[%emt 0:02:32]} Bc5 {[%emt 0:02:58]} 18. h3 {[%emt 0:04:37]} Re8 {[%emt 0:06:56]} 19. Bc3 {[%emt 0:01:15]} b6 {[%emt 0:08:02]} 20. b4 {[%emt 0:01:59]} Bd6 {[%emt 0:00:25]} 21. Nb3 {[%emt 0:03:48]} a4 {[%emt 0:03:43]} 22. Nc1 {[%emt 0:01:25]} b5 {[%emt 0:00:44]} 23. c5 {[%emt 0:00:57]} Bf8 {[%emt 0:00:07]} 24. Qb2 {[%emt 0:04:23]} Nh7 {[%emt 0:05:00]} 25. h4 {[%emt 0:02:56]} f6 {[%emt 0:01:02]} 26. Nd3 {[%emt 0:02:35]} Qc8 {[%emt 0:02:11]} 27. Rad1 {[%emt 0:01:46]} Bh3 {[%emt 0:00:37]} 28. Qe2 {[%emt 0:05:56]} Bxg2 {[%emt 0:04:05]} 29. Kxg2 Qg4 30. Qa2+ {[%emt 0:05:07]} Kh8 {[%emt 0:04:09]} 31. Qe2 {[%emt 0:08:40]} Rad8 {[%emt 0:00:54]} 32. Kh2 {[%emt 0:01:25]} Re7 {[%emt 0:02:42]} 33. Ndxe5 {[%emt 0:12:24]} Nxe5 {[%emt 0:01:49]} 34. Nxe5 {[%emt 0:01:48]} Qxe2 {[%emt 0:09:52]} 35. Ng6+ {[%emt 0:00:31]} 1-0

[Event "55th Rubinstein Memorial-C 2019"]
[Site "Polanica-Zdroj"]
[Date "2019.08.24"]
[Round "8.27"]
[White "Filipska, Maja"]
[Black "Celebias, Filip"]
[Result "1-0"]
[ECO "A46"]
[WhiteElo "1605"]
[BlackElo "1336"]
[Annotator "NA"]
[PlyCount "135"]
[EventDate "2019.08.17"]
[EventType "swiss"]
[EventCountry "POL"]
[SourceTitle "playchess.com"]
[Source "ChessBase"]
[SourceQuality "1"]
[TimeControl "40/5400+30:1800+30"]

1. d4 {[%emt 0:00:00]} Nf6 {[%emt 0:00:00]} 2. Nf3 {[%emt 0:01:02]} e6 {[%emt 0:00:00]} 3. e3 {[%emt 0:00:36]} b6 {[%emt 0:00:00]} 4. Bd3 {[%emt 0:00:42]} Bb7 {[%emt 0:00:03]} 5. Nbd2 {[%emt 0:00:19]} Be7 {[%emt 0:00:50]} 6. O-O {[%emt 0:00:48]} O-O {[%emt 0:01:21]} 7. c4 {[%emt 0:02:50]} d5 {[%emt 0:01:45]} 8. b3 {[%emt 0:01:24]} Nbd7 {[%emt 0:00:32]} 9. Qc2 {[%emt 0:01:35]} dxc4 {[%emt 0:02:58]} 10. Nxc4 {[%emt 0:04:01]} c5 {[%emt 0:01:08]} 11. Nfe5 {[%emt 0:04:22]} cxd4 {[%emt 0:11:04]} 12. exd4 {[%emt 0:00:16]} Rc8 {[%emt 0:12:42]} 13. Qe2 {[%emt 0:03:55]} Nd5 {[%emt 0:15:16]} 14. Nxd7 {[%emt 0:08:04]} Qxd7 {[%emt 0:00:00]} 15. Ne5 {[%emt 0:03:25]} Qd6 {[%emt 0:04:23]} 16. Qe4 {[%emt 0:04:58]} f5 {[%emt 0:09:18]} 17. Qe2 {[%emt 0:03:00]} Nc3 {[%emt 0:19:24]} 18. Qe3 {[%emt 0:02:47]} Rf6 {[%emt 0:02:56]} 19. Bc4 {[%emt 0:07:49]} Nd5 {[%emt 0:01:58]} 20. Qe2 {[%emt 0:01:32]} Rff8 {[%emt 0:04:52]} 21. Re1 {[%emt 0:02:33]} Bf6 {[%emt 0:02:06]} 22. Nf3 {[%emt 0:05:33]} Rfe8 {[%emt 0:00:40]} 23. a4 {[%emt 0:00:43]} a5 {[%emt 0:01:20]} 24. Ba3 {[%emt 0:03:18]} Qf4 {[%emt 0:01:01]} 25. Rac1 {[%emt 0:08:06]} Bxd4 {[%emt 0:03:38]} 26. Nxd4 {[%emt 0:00:10]} Qxd4 {[%emt 0:00:22]} 27. Qf3 {[%emt 0:06:15]} Bc6 {[%emt 0:00:51]} 28. Ba6 {[%emt 0:03:22]} Nb4 {[%emt 0:00:44]} 29. Rxc6 {[%emt 0:05:27]} Rxc6 {[%emt 0:00:39]} 30. Bb5 {[%emt 0:00:38]} Rc3 {[%emt 0:00:44]} 31. Bb2 {[%emt 0:03:47]} Rec8 {[%emt 0:01:49]} 32. Qe2 {[%emt 0:03:03]} e5 {[%emt 0:00:50]} 33. Bc4+ {[%emt 0:02:38]} Kh8 {[%emt 0:00:32]} 34. Bxc3 {[%emt 0:01:02]} Qxc3 {[%emt 0:00:08]} 35. Qxe5 {[%emt 0:00:30]} Qxe5 {[%emt 0:00:23]} 36. Rxe5 {[%emt 0:00:00]} g6 {[%emt 0:00:28]} 37. Kf1 {[%emt 0:00:27]} Rc6 {[%emt 0:00:41]} 38. Re7 {[%emt 0:00:36]} Rd6 {[%emt 0:00:35]} 39. Ke2 {[%emt 0:00:49]} Nc6 {[%emt 0:00:34]} 40. Rb7 {[%emt 0:02:34]} Nd4+ {[%emt 0:00:36]} 41. Ke3 {[%emt 0:30:24]} g5 {[%emt 0:30:31]} 42. Bd3 {[%emt 0:01:33]} f4+ {[%emt 0:00:38]} 43. Ke4 {[%emt 0:01:06]} Nxb3 {[%emt 0:00:12]} 44. Rb8+ {[%emt 0:01:31]} Kg7 {[%emt 0:00:05]} 45. Bc2 {[%emt 0:00:20]} Nc5+ {[%emt 0:00:32]} 46. Kf5 {[%emt 0:01:17]} Rd5+ {[%emt 0:00:58]} 47. Kg4 {[%emt 0:00:19]} Nd7 {[%emt 0:00:37]} 48. Rb7 {[%emt 0:00:17]} Kh6 {[%emt 0:00:35]} 49. Kf3 {[%emt 0:01:11]} Rd2 {[%emt 0:00:33]} 50. Bf5 {[%emt 0:00:50]} Nf6 {[%emt 0:00:25]} 51. Rxb6 {[%emt 0:00:37]} g4+ {[%emt 0:00:39]} 52. Bxg4 {[%emt 0:00:31]} Kg7 {[%emt 0:00:25]} 53. Bf5 {[%emt 0:00:30]} Rd4 {[%emt 0:00:31]} 54. Bc2 {[%emt 0:00:30]} Rc4 {[%emt 0:00:14]} 55. Bb3 {[%emt 0:00:33]} Rc3+ {[%emt 0:00:26]} 56. Kxf4 {[%emt 0:00:25]} Nh5+ {[%emt 0:00:48]} 57. Kg4 {[%emt 0:00:34]} Nf6+ {[%emt 0:00:07]} 58. Kf5 {[%emt 0:00:35]} Rc5+ {[%emt 0:00:39]} 59. Ke6 {[%emt 0:00:22]} Ng4 {[%emt 0:00:31]} 60. f3 {[%emt 0:00:28]} Nxh2 {[%emt 0:00:31]} 61. Rb5 {[%emt 0:00:50]} Rc3 {[%emt 0:00:18]} 62. Bd5 {[%emt 0:00:36]} Nf1 {[%emt 0:00:22]} 63. Rxa5 {[%emt 0:00:13]} Ne3 {[%emt 0:00:18]} 64. Ra7+ {[%emt 0:00:19]} Kh6 {[%emt 0:01:01]} 65. Be4 {[%emt 0:00:22]} Ra3 {[%emt 0:00:47]} 66. Rxh7+ {[%emt 0:00:18]} Kg5 {[%emt 0:00:09]} 67. Rg7+ {[%emt 0:00:45]} Kf4 {[%emt 0:00:18]} 68. g3# {[%emt 0:00:06]} 1-0

[Event "55th Rubinstein Memorial-C 2019"]
[Site "Polanica-Zdroj"]
[Date "2019.08.24"]
[Round "8.28"]
[White "Borowski, Przemyslaw"]
[Black "Kazmierowski, Tymon"]
[Result "0-1"]
[ECO "A30"]
[WhiteElo "1805"]
[BlackElo "1532"]
[Annotator "NA"]
[PlyCount "110"]
[EventDate "2019.08.17"]
[EventType "swiss"]
[EventCountry "POL"]
[SourceTitle "playchess.com"]
[Source "ChessBase"]
[SourceQuality "1"]
[TimeControl "40/5400+30:1800+30"]

1. c4 {[%emt 0:00:00]} c5 {[%emt 0:00:00]} 2. g3 {[%emt 0:00:02]} Nc6 {[%emt 0:00:00]} 3. Bg2 {[%emt 0:00:07]} g6 {[%emt 0:00:00]} 4. e4 {[%emt 0:01:57]} Bg7 {[%emt 0:00:00]} 5. Ne2 {[%emt 0:00:10]} e5 {[%emt 0:00:09]} 6. O-O {[%emt 0:01:02]} Nge7 {[%emt 0:00:06]} 7. Nbc3 {[%emt 0:02:17]} O-O {[%emt 0:00:09]} 8. a3 $11 {[%emt 0:02:01]} d6 {[%emt 0:00:13]} 9. Rb1 {[%emt 0:00:26]} a5 {[%emt 0:01:18]} 10. Nb5 {[%emt 0:02:39]} Be6 {[%emt 0:01:59]} 11. d3 {[%emt 0:00:43]} Qd7 {[%emt 0:04:03]} 12. Bd2 {[%emt 0:02:10]} f5 {[%emt 0:07:44]} 13. f4 {[%emt 0:15:35]} fxe4 {[%emt 0:02:28]} 14. Bxe4 {[%emt 0:02:14]} Bh3 {[%emt 0:00:51]} 15. Bg2 {[%emt 0:02:44]} Bxg2 {[%emt 0:00:32]} 16. Kxg2 {[%emt 0:00:07]} Nf5 {[%emt 0:00:22]} 17. Nec3 {[%emt 0:02:04]} Ncd4 {[%emt 0:05:48]} 18. Nxd4 {[%emt 0:01:07]} exd4 {[%emt 0:01:40]} 19. Nd5 {[%emt 0:01:05]} Rae8 {[%emt 0:01:02]} 20. Re1 {[%emt 0:12:55]} Rxe1 {[%emt 0:04:21]} 21. Qxe1 {[%emt 0:00:17]} Re8 {[%emt 0:00:22]} 22. Qf2 {[%emt 0:01:18]} Ne3+ {[%emt 0:04:46]} 23. Bxe3 {[%emt 0:14:51]} dxe3 {[%emt 0:00:04]} 24. Qe2 {[%emt 0:00:42]} b5 {[%emt 0:07:29]} 25. b3 {[%emt 0:04:00]} Bd4 {[%emt 0:05:28]} 26. g4 {[%emt 0:02:42]} Rf8 {[%emt 0:07:28]} 27. Rf1 {[%emt 0:03:37]} bxc4 {[%emt 0:01:46]} 28. dxc4 {[%emt 0:08:57]} Qe6 {[%emt 0:05:37]} 29. Kf3 {[%emt 0:08:44]} h5 {[%emt 0:03:59]} 30. h3 {[%emt 0:00:13]} h4 {[%emt 0:00:37]} 31. Qd3 {[%emt 0:00:38]} g5 {[%emt 0:05:11]} 32. Qe4 {[%emt 0:02:49]} Qxe4+ {[%emt 0:01:04]} 33. Kxe4 {[%emt 0:00:22]} gxf4 {[%emt 0:01:01]} 34. Nxf4 {[%emt 0:01:38]} e2 {[%emt 0:00:39]} 35. Re1 {[%emt 0:00:26]} Be5 {[%emt 0:00:08]} 36. Nd3 {[%emt 0:02:08]} Rb8 {[%emt 0:10:19]} 37. Nxe5 {[%emt 0:00:57]} dxe5 {[%emt 0:01:25]} 38. Rxe2 {[%emt 0:00:44]} Rxb3 {[%emt 0:00:19]} 39. Re3 {[%emt 0:00:31]} a4 {[%emt 0:01:18]} 40. Rf3 {[%emt 0:01:03]} Kg7 {[%emt 0:00:11]} 41. Rf5 {[%emt 0:30:27]} Rxa3 {[%emt 0:31:25]} 42. Rxe5 {[%emt 0:00:34]} Rxh3 {[%emt 0:00:12]} 43. Rxc5 {[%emt 0:00:18]} Rg3 {[%emt 0:01:18]} 44. Kf4 {[%emt 0:00:57]} Rc3 {[%emt 0:00:31]} 45. g5 {[%emt 0:01:24]} a3 {[%emt 0:03:49]} 46. Rd5 {[%emt 0:00:37]} Rxc4+ {[%emt 0:00:47]} 47. Kf3 {[%emt 0:00:11]} Ra4 {[%emt 0:02:18]} 48. Rd1 {[%emt 0:00:39]} a2 {[%emt 0:00:10]} 49. Ra1 {[%emt 0:00:08]} Kg6 {[%emt 0:00:04]} 50. Kg2 {[%emt 0:00:22]} Kxg5 {[%emt 0:00:10]} 51. Kf2 {[%emt 0:00:18]} Kf4 {[%emt 0:00:35]} 52. Kg2 {[%emt 0:00:14]} Kg4 {[%emt 0:00:06]} 53. Kf2 {[%emt 0:00:43]} h3 {[%emt 0:00:29]} 54. Rg1+ {[%emt 0:00:08]} Kf4 {[%emt 0:00:05]} 55. Ra1 {[%emt 0:00:11]} h2 {[%emt 0:00:09]} 0-1

[Event "55th Rubinstein Memorial-C 2019"]
[Site "Polanica-Zdroj"]
[Date "2019.08.24"]
[Round "8.29"]
[White "Burdzicki, Stanislaw"]
[Black "Grzadka, Artur"]
[Result "1-0"]
[ECO "D88"]
[WhiteElo "1785"]
[BlackElo "1512"]
[Annotator "NA"]
[PlyCount "55"]
[EventDate "2019.08.17"]
[EventType "swiss"]
[EventCountry "POL"]
[SourceTitle "playchess.com"]
[Source "ChessBase"]
[SourceQuality "1"]
[TimeControl "40/5400+30:1800+30"]

1. d4 {[%emt 0:00:00]} Nf6 {[%emt 0:00:00]} 2. c4 {[%emt 0:00:00]} g6 {[%emt 0:00:00]} 3. Nc3 {[%emt 0:00:00]} d5 {[%emt 0:00:00]} 4. cxd5 {[%emt 0:00:09]} Nxd5 {[%emt 0:00:00]} 5. e4 {[%emt 0:00:04]} Nxc3 {[%emt 0:00:03]} 6. bxc3 {[%emt 0:00:04]} Bg7 {[%emt 0:00:13]} 7. Bc4 {[%emt 0:00:18]} c5 {[%emt 0:01:31]} 8. Ne2 {[%emt 0:00:34]} Nc6 {[%emt 0:01:41]} 9. Be3 {[%emt 0:00:22]} cxd4 {[%emt 0:01:57]} 10. cxd4 {[%emt 0:02:53]} O-O {[%emt 0:01:38]} 11. O-O {[%emt 0:01:39]} b6 {[%emt 0:04:27]} 12. Rc1 {[%emt 0:08:06]} Bb7 {[%emt 0:01:29]} 13. Qd2 {[%emt 0:00:17]} Na5 {[%emt 0:05:11]} 14. Bd3 {[%emt 0:00:58]} Nc6 {[%emt 0:06:59]} 15. Bb5 {[%emt 0:19:13]} Rc8 {[%emt 0:03:13]} 16. d5 {[%emt 0:04:35]} Ne5 {[%emt 0:02:14]} 17. Rxc8 {[%emt 0:03:41]} Bxc8 {[%emt 0:04:17]} 18. Nd4 {[%emt 0:05:44]} a6 {[%emt 0:10:38]} 19. Be2 {[%emt 0:00:38]} Bb7 {[%emt 0:01:57]} 20. Rc1 {[%emt 0:03:08]} Qd6 {[%emt 0:19:40]} 21. f4 {[%emt 0:09:27]} Nd7 {[%emt 0:01:45]} 22. Nc6 {[%emt 0:04:40]} e6 {[%emt 0:04:17]} 23. e5 {[%emt 0:02:21]} Qa3 {[%emt 0:02:39]} 24. Rc3 {[%emt 0:01:32]} Qa4 {[%emt 0:01:25]} 25. Bd1 {[%emt 0:00:29]} Qb5 {[%emt 0:03:02]} 26. Rb3 {[%emt 0:07:24]} Qc4 {[%emt 0:05:36]} 27. Rb4 {[%emt 0:00:22]} Qxb4 {[%emt 0:03:12]} 28. Nxb4 {[%emt 0:01:22]} 1-0

[Event "55th Rubinstein Memorial-C 2019"]
[Site "Polanica-Zdroj"]
[Date "2019.08.24"]
[Round "8.30"]
[White "Ziemski, Przemyslaw"]
[Black "Goral, Jan"]
[Result "1/2-1/2"]
[ECO "B20"]
[WhiteElo "1759"]
[BlackElo "1486"]
[Annotator "NA"]
[PlyCount "75"]
[EventDate "2019.08.17"]
[EventType "swiss"]
[EventCountry "POL"]
[SourceTitle "playchess.com"]
[Source "ChessBase"]
[SourceQuality "1"]
[TimeControl "40/5400+30:1800+30"]

1. e4 c5 2. c4 Nc6 3. Nc3 g6 4. g3 Bg7 5. Bg2 e6 6. Nge2 Nge7 7. O-O O-O 8. d3 d6 9. Be3 Nd4 10. Qd2 Bd7 11. Bh6 a6 12. Nxd4 cxd4 13. Bxg7 Kxg7 14. Ne2 Qb6 15. b4 e5 16. f4 f5 17. Rae1 Bc6 18. fxe5 dxe5 19. Nc1 fxe4 20. Bxe4 Qc7 21. Qe2 Rxf1+ 22. Rxf1 Bxe4 23. Qxe4 Nf5 24. Nb3 Re8 25. g4 Ne3 26. Rf3 Qc6 27. Qxc6 bxc6 28. Nc5 Rb8 29. g5 Nf5 30. a3 Ra8 31. Nd7 Re8 32. Nc5 Ra8 33. Rf2 Kf7 34. Rb2 Ke7 35. Ne4 Ke6 36. Nc5+ Kd6 37. Ne4+ Ke6 38. Nc5+ 1/2-1/2

[Event "55th Rubinstein Memorial-C 2019"]
[Site "Polanica-Zdroj"]
[Date "2019.08.24"]
[Round "8.31"]
[White "Hasterok, Lukasz"]
[Black "Milczarek, Robert"]
[Result "1-0"]
[ECO "A48"]
[WhiteElo "1531"]
[BlackElo "1698"]
[Annotator "NA"]
[PlyCount "85"]
[EventDate "2019.08.17"]
[EventType "swiss"]
[EventCountry "POL"]
[SourceTitle "playchess.com"]
[Source "ChessBase"]
[SourceQuality "1"]
[TimeControl "40/5400+30:1800+30"]

1. d4 {[%emt 0:05:13]} Nf6 {[%emt 0:00:00]} 2. Nf3 {[%emt 0:00:25]} g6 {[%emt 0:00:00]} 3. Bf4 {[%emt 0:00:13]} Bg7 {[%emt 0:00:15]} 4. h3 {[%emt 0:00:18]} d6 {[%emt 0:01:15]} 5. e3 {[%emt 0:00:33]} O-O {[%emt 0:02:30]} 6. Bc4 {[%emt 0:01:18]} c5 {[%emt 0:01:02]} 7. c3 {[%emt 0:03:04]} h6 {[%emt 0:03:09]} 8. Nbd2 {[%emt 0:01:42]} Nc6 {[%emt 0:05:18]} 9. O-O {[%emt 0:01:00]} b6 {[%emt 0:01:49]} 10. Bh2 {[%emt 0:00:23]} Bb7 {[%emt 0:01:48]} 11. Rc1 {[%emt 0:02:09]} Rc8 {[%emt 0:04:54]} 12. Re1 {[%emt 0:03:30]} Nd7 {[%emt 0:03:46]} 13. a4 {[%emt 0:08:55]} e5 {[%emt 0:03:21]} 14. dxc5 {[%emt 0:08:12]} dxc5 {[%emt 0:08:08]} 15. Qc2 {[%emt 0:00:42]} Na5 16. Ba2 Qe7 {[%emt 0:06:40]} 17. Ne4 {[%emt 0:02:57]} c4 {[%emt 0:03:10]} 18. Rcd1 {[%emt 0:07:21]} f5 {[%emt 0:04:34]} 19. Nd6 {[%emt 0:00:29]} Bxf3 {[%emt 0:00:16]} 20. Nxc8 {[%emt 0:01:18]} Qg5 {[%emt 0:05:29]} 21. Bg3 {[%emt 0:06:22]} Be4 {[%emt 0:07:21]} 22. Qe2 {[%emt 0:03:15]} Nc5 {[%emt 0:04:01]} 23. Nd6 Bc6 24. h4 {[%emt 0:02:46]} Qf6 {[%emt 0:02:22]} 25. Bxc4+ {[%emt 0:01:12]} Nxc4 {[%emt 0:01:11]} 26. Qxc4+ {[%emt 0:00:08]} Kh7 {[%emt 0:00:08]} 27. f4 {[%emt 0:04:06]} exf4 {[%emt 0:01:21]} 28. exf4 {[%emt 0:02:18]} Bxa4 {[%emt 0:00:45]} 29. Rd4 {[%emt 0:03:18]} Bb3 {[%emt 0:00:54]} 30. Qe2 {[%emt 0:01:30]} Rd8 {[%emt 0:06:48]} 31. Ne8 {[%emt 0:06:29]} Rxe8 {[%emt 0:03:15]} 32. Qxe8 {[%emt 0:00:07]} Ne4 {[%emt 0:00:55]} 33. Rdxe4 {[%emt 0:02:18]} fxe4 34. Qxe4 Qd6 {[%emt 0:02:40]} 35. h5 {[%emt 0:01:46]} Qc5+ {[%emt 0:00:21]} 36. Bf2 {[%emt 0:01:21]} Qxh5 {[%emt 0:00:30]} 37. Qe7 {[%emt 0:00:20]} Kg8 {[%emt 0:05:58]} 38. Qxa7 {[%emt 0:01:40]} g5 {[%emt 0:01:27]} 39. fxg5 {[%emt 0:02:46]} Qxg5 {[%emt 0:01:20]} 40. Qxb6 {[%emt 0:06:10]} Bd5 {[%emt 0:00:44]} 41. Qb8+ {[%emt 0:30:34]} Kh7 {[%emt 0:30:41]} 42. Qg3 {[%emt 0:00:09]} Qd2 {[%emt 0:02:41]} 43. Re7 {[%emt 0:01:15]} 1-0

[Event "55th Rubinstein Memorial-C 2019"]
[Site "Polanica-Zdroj"]
[Date "2019.08.24"]
[Round "8.32"]
[White "Krzyzosiak, Marta"]
[Black "Ciesielski, Maciej"]
[Result "0-1"]
[ECO "B42"]
[WhiteElo "1684"]
[BlackElo "1486"]
[Annotator "NA"]
[PlyCount "82"]
[EventDate "2019.08.17"]
[EventType "swiss"]
[EventCountry "POL"]
[SourceTitle "playchess.com"]
[Source "ChessBase"]
[SourceQuality "1"]
[TimeControl "40/5400+30:1800+30"]

1. e4 c5 2. Nf3 e6 3. d4 cxd4 4. Nxd4 a6 5. Bd3 Qc7 6. O-O Nf6 7. Be3 Nc6 8. Qe2 b5 9. f3 Bd6 10. h3 Bh2+ 11. Kh1 Nh5 12. Qe1 Ng3+ 13. Kxh2 Nxf1+ 14. Kg1 Nxe3 15. Qxe3 Bb7 16. Nd2 O-O 17. Nxc6 dxc6 18. e5 c5 19. b3 Rad8 20. Re1 Rd7 21. Qg5 h6 22. Qh5 Qa5 23. Re2 Qxa2 24. Ne4 Rxd3 25. Nxc5 Rd1+ 26. Kh2 Bc6 27. f4 Qb1 28. Qg4 Rh1+ 29. Kg3 Qg1 30. Nd3 Rh2 31. Ne1 Rh1 32. Nf3 Bxf3 33. Qxf3 Qf1 34. Rf2 Qe1 35. Qd3 Rc8 36. c4 bxc4 37. bxc4 Qd1 38. Rd2 Qa4 39. Qe4 Qxc4 40. Rd4 Qc3+ 41. Rd3 Qe1+ 0-1

[Event "55th Rubinstein Memorial-C 2019"]
[Site "Polanica-Zdroj"]
[Date "2019.08.24"]
[Round "8.33"]
[White "Rosa, Antoni"]
[Black "Topola, Rafal"]
[Result "0-1"]
[ECO "A37"]
[WhiteElo "1528"]
[BlackElo "1660"]
[Annotator "NA"]
[PlyCount "74"]
[EventDate "2019.08.17"]
[EventType "swiss"]
[EventCountry "POL"]
[SourceTitle "playchess.com"]
[Source "ChessBase"]
[SourceQuality "1"]
[TimeControl "40/5400+30:1800+30"]

1. c4 c5 2. Nf3 Nc6 3. g3 g6 4. Bg2 Bg7 5. Nc3 e5 6. O-O Nge7 7. d3 O-O 8. a3 d6 9. Bd2 Be6 10. Rb1 a5 11. Nb5 Rb8 12. Ng5 Bf5 13. Ne4 Bxe4 14. Bxe4 d5 15. cxd5 Nxd5 16. Nc3 Nde7 17. Be3 b6 18. Qd2 Qd7 19. Bh6 Rfd8 20. Bxg7 Kxg7 21. Bxc6 Nxc6 22. f4 Qd4+ 23. Kh1 c4 24. fxe5 cxd3 25. exd3 Nxe5 26. Qg5 Nxd3 27. Kg2 Qe5 28. Qxe5+ Nxe5 29. Rbe1 Rd2+ 30. Kh3 Nc6 31. Rb1 Re8 32. Rf4 g5 33. Rf5 Re5 34. Rxe5 Nxe5 35. Ne4 g4+ 36. Kh4 f5 37. Nxd2 Kh6 {Kh3} 0-1